bitfinex/quotes_SOLUSD_20250920
["timestamp","ask_amount","ask_price","bid_price","bid_amount"]
[1758338296369,1.25917029,238.6,238.56,4.19170132]
[1758338296370,0.69,238.62,238.56,0.68]
[1758338296659,0.69,238.62,238.57,31.98]
[1758338296660,1.25917029,238.58,238.57,31.98]
[1758338298650,1.94917029,238.58,238.57,31.98]
[1758338299748,6.14063646,238.58,238.51,0.78]
[1758338299946,1.25917029,238.54,238.52,32.68]
[1758338300172,1.25917029,238.54,238.52,32.0]
[1758338300360,1.25917029,238.54,238.53,0.68]
[1758338300538,1.25917029,238.54,238.53,32.68]
[1758338304766,1.25917029,238.54,238.53,32.0]
[1758338304949,1.25917029,238.55,238.53,32.0]
[1758338305151,1.25917029,238.55,238.53,32.68]
[1758338308265,1.25917029,238.55,238.53,36.87224136]
[1758338308454,1.660122,266.42,238.53,36.87224136]
[1758338308455,31.2,238.66,238.54,0.71]
[1758338308771,31.2,238.58,238.55,32.0]
[1758338309070,31.2,238.58,238.56,0.71]
[1758338309281,31.2,238.58,238.57,32.73]
[1758338309592,31.2,238.58,238.57,32.02]
[1758338309750,1.25917029,238.59,238.57,32.02]
[1758338309951,1.97917029,238.59,238.57,32.02]
[1758338310370,1.25917029,238.58,238.57,32.02]
[1758338313766,1.25917029,238.59,238.57,32.02]
[1758338315391,1.97917029,238.59,238.57,32.02]
[1758338315563,1.25917029,238.59,238.57,36.21161367]
[1758338315777,1.97020672,238.59,238.57,32.02]
[1758338316068,1.97020672,238.58,238.57,32.02]
[1758338316807,1.97020672,238.58,238.57,36.92164186]
[1758338317087,1.97020672,238.58,238.57,36.21164186]
[1758338318893,0.72,238.6,238.57,36.21164186]
[1758338319083,1.97020672,238.58,238.57,36.21164186]
[1758338319396,1.97020672,238.58,238.57,36.92164186]
[1758338320090,1.97020672,238.58,238.57,36.21164186]
[1758338321493,1.97020672,238.58,238.57,32.02]
[1758338321688,2.69020672,238.58,238.57,32.02]
[1758338322374,1.97020672,238.58,238.57,32.02]
[1758338324594,1.97020672,238.58,238.57,36.21164186]
[1758338324916,13.32318861,238.61,238.57,36.92164186]
[1758338325076,1.97020672,238.58,238.57,36.92164186]
[1758338325698,1.97020672,238.58,238.57,36.21164186]
[1758338327277,15.29339533,238.61,238.57,36.21164186]
[1758338327495,0.72,238.6,238.57,36.21164186]
[1758338328300,15.29339533,238.61,238.57,36.92164186]
[1758338328888,0.72,238.6,238.57,36.92164186]
[1758338329272,0.72,238.6,238.57,36.21164186]
[1758338329573,0.72,238.6,238.57,36.92164186]
[1758338330196,2.69020672,238.6,238.57,36.92164186]
[1758338330494,1.97020672,238.6,238.57,36.92164186]
[1758338332697,1.97020672,238.6,238.57,4.90164186]
[1758338332900,1.97020672,238.6,238.58,31.96]
[1758338335503,13.32318861,238.61,238.58,36.15142529]
[1758338335684,4.91008619,238.66,238.59,0.69]
[1758338335890,14.57127781,238.65,238.6,31.96]
[1758338336084,12.60107109,238.65,238.61,0.69]
[1758338336291,1.97020672,238.66,238.62,31.98]
[1758338336499,31.2,238.65,238.63,0.69]
[1758338336682,1.97020672,238.67,238.64,32.67]
[1758338336885,2.82421613,238.66,238.64,31.98]
[1758338337089,31.2,238.65,238.64,31.98]
[1758338340381,33.89020672,238.65,238.64,31.98]
[1758338340585,36.71660873,238.65,238.59,31.98]
[1758338340908,1.97020672,238.6,238.59,31.98]
[1758338341094,1.97020672,238.6,238.59,32.69]
[1758338341286,33.17020672,238.61,238.59,32.69]
[1758338341700,31.2,238.61,238.6,0.71]
[1758338341901,33.17020672,238.62,238.6,0.71]
[1758338342287,31.2,238.62,238.61,0.71]
[1758338342600,1.97020672,238.66,238.61,32.71]
[1758338342797,2.82674507,238.65,238.62,0.71]
[1758338343117,33.88020672,238.67,238.63,32.0]
[1758338343411,46.48074854,238.67,238.63,32.71]
[1758338343616,31.2,238.66,238.63,32.71]
[1758338344213,2.68020672,238.66,238.63,32.71]
[1758338344511,31.2,238.64,238.63,32.0]
[1758338348904,33.17020672,238.64,238.63,32.0]
[1758338349104,35.9963141,238.64,238.63,32.0]
[1758338349303,33.17020672,238.64,238.63,32.0]
[1758338349921,31.2,238.64,238.63,32.0]
[1758338350491,33.17020672,238.64,238.63,32.0]
[1758338351110,33.17020672,238.64,238.62,0.71]
[1758338351305,33.17020672,238.64,238.63,31.98]
[1758338353310,40.89782728,238.64,238.63,31.98]
[1758338353489,40.89782728,238.64,238.58,0.71]
[1758338353690,1.97020672,238.61,238.59,31.98]
[1758338354092,1.97020672,238.61,238.59,32.69]
[1758338354702,1.97020672,238.61,238.59,31.98]
[1758338355019,1.97020672,238.62,238.6,0.71]
[1758338357633,6.87098837,238.62,238.59,31.98]
[1758338359214,6.16098837,238.62,238.59,31.98]
[1758338359901,1.97020672,238.62,238.6,0.71]
[1758338360510,33.17020672,238.63,238.6,0.71]
[1758338361321,1.97020672,238.62,238.6,0.71]
[1758338361519,1.97020672,238.62,238.59,31.98]
[1758338361818,1.97020672,238.62,238.59,32.69]
[1758338362724,2.68020672,238.62,238.59,32.69]
[1758338362926,1.97020672,238.62,238.59,32.69]
[1758338363815,6.16098239,238.62,238.59,32.69]
[1758338364014,6.87098239,238.62,238.59,32.69]
[1758338365828,6.16098239,238.62,238.59,32.69]
[1758338366727,6.16098239,238.62,238.6,0.7]
[1758338367626,1.97020672,238.62,238.6,0.7]
[1758338367822,45.99268682,238.69,238.61,0.7]
[1758338368028,1.97020672,238.66,238.62,31.98]
[1758338368208,7.0173846,238.68,238.62,31.98]
[1758338368209,2.82767453,238.65,238.63,0.7]
[1758338368413,2.82767453,238.64,238.63,0.7]
[1758338368629,31.2,238.65,238.64,0.7]
[1758338368818,2.82750689,238.65,238.64,0.7]
[1758338369019,2.82750689,238.66,238.64,0.7]
[1758338369225,1.97020672,238.67,238.64,0.7]
[1758338369423,2.82738136,238.66,238.64,0.7]
[1758338369621,1.97020672,238.67,238.64,0.7]
[1758338369941,2.82738091,238.66,238.64,0.7]
[1758338370134,2.8274156,238.65,238.62,36.17074134]
[1758338370322,34.02736012,238.66,238.65,0.7]
[1758338374146,34.02736012,238.66,238.63,4.89058269]
[1758338374337,31.2,238.66,238.64,0.7]
[1758338374746,33.17020672,238.66,238.64,0.7]
[1758338375245,33.17020672,238.66,238.63,0.7]
[1758338375444,2.65020672,238.65,238.62,31.98]
[1758338375747,1.94039296,238.65,238.62,31.98]
[1758338375923,31.2,238.62,238.59,62.59999998]
[1758338376118,1.26039296,238.61,238.59,62.59999998]
[1758338376315,32.46039296,238.62,238.6,0.7]
[1758338376536,31.2,238.62,238.6,0.7]
[1758338376726,32.46039296,238.63,238.61,0.7]
[1758338377124,31.2,238.63,238.6,32.0]
[1758338377332,31.2,238.63,238.62,0.7]
[1758338377530,32.46039296,238.65,238.62,0.7]
[1758338377740,2.8273025,238.64,238.63,0.7]
[1758338380348,34.0273025,238.64,238.61,4.89078649]
[1758338380561,32.46039296,238.64,238.62,0.7]
[1758338380740,32.46039296,238.64,238.6,98.79110048]
[1758338380941,32.46039296,238.64,238.61,0.7]
[1758338381331,31.2,238.67,238.62,0.7]
[1758338381533,1.26039296,238.65,238.6,98.79110048]
[1758338381739,3.50758595,238.64,238.6,99.49110048]
[1758338381949,3.50758595,238.64,238.6,94.59999998]
[1758338382147,1.26039296,238.64,238.6,95.29999998]
[1758338382456,1.94039296,238.64,238.6,95.29999998]
[1758338383268,1.94039296,238.64,238.61,0.7]
[1758338384048,1.94039296,238.64,238.61,63.29999998]
[1758338384254,1.26039296,238.65,238.62,0.7]
[1758338384455,4.08822463,238.64,238.63,0.7]
[1758338385153,4.08822463,238.64,238.63,32.7]
[1758338385646,1.26039296,238.64,238.63,32.7]
[1758338385851,4.08822463,238.64,238.63,32.7]
[1758338386055,1.26039296,238.64,238.63,32.7]
[1758338386232,4.76822463,238.64,238.63,32.0]
[1758338386644,40.15863696,238.64,238.61,94.61999998]
[1758338386848,1.26039296,238.62,238.61,94.61999998]
[1758338390064,1.26039296,238.62,238.61,32.02]
[1758338390463,5.45099763,238.63,238.61,32.02]
[1758338391451,5.45099763,238.63,238.61,32.72]
[1758338391657,4.19060467,238.63,238.61,32.72]
[1758338391849,5.45099763,238.63,238.61,32.72]
[1758338392249,1.26039296,238.63,238.61,32.72]
[1758338392762,32.46039296,238.64,238.61,32.72]
[1758338392951,2.82846242,238.63,238.61,32.72]
[1758338393259,36.65082391,238.64,238.61,32.72]
[1758338393467,2.82848526,238.63,238.61,32.72]
[1758338393759,1.26039296,238.67,238.62,0.7]
[1758338393969,2.82842548,238.66,238.63,32.0]
[1758338394145,2.82842548,238.65,238.64,0.7]
[1758338396765,34.02842548,238.65,238.64,0.7]
[1758338397066,34.02842548,238.65,238.63,32.69]
[1758338397363,2.82842548,238.64,238.63,32.69]
[1758338400454,31.2,238.65,238.63,32.69]
[1758338401064,31.2,238.65,238.63,32.72]
[1758338403470,31.2,238.65,238.64,0.72]
[1758338403668,31.2,238.65,238.63,32.0]
[1758338403970,31.2,238.65,238.63,32.72]
[1758338405467,31.2,238.65,238.63,32.0]
[1758338405650,32.46039296,238.67,238.64,0.72]
[1758338405965,2.82806903,238.66,238.65,31.98]
[1758338406171,2.82806903,238.66,238.65,32.7]
[1758338406548,34.02806903,238.66,238.65,32.7]
[1758338407267,34.02806903,238.66,238.65,31.98]
[1758338411972,35.28846199,238.66,238.65,31.98]
[1758338416782,35.96846199,238.66,238.65,31.98]
[1758338417667,35.28846199,238.66,238.65,31.98]
[1758338426182,35.43062356,238.66,238.65,31.98]
[1758338426388,4.23062356,238.66,238.65,32.66]
[1758338426586,35.43062356,238.66,238.65,31.98]
[1758338427277,0.14216157,238.66,238.65,32.66]
[1758338427492,0.14216157,238.66,238.65,36.85023674]
[1758338427695,0.14216157,238.66,238.65,50.44583075]
[1758338431487,0.14216157,238.66,238.65,50.73015389]
[1758338431676,0.14216157,238.66,238.65,113.33015387]
[1758338434306,0.14216157,238.66,238.65,114.59054683]
[1758338435484,2.18039296,238.72,238.66,13.59559401]
[1758338435681,2.18039296,238.72,238.67,32.64]
[1758338435881,1.98039296,238.71,238.67,32.64]
[1758338436378,1.98039296,238.7,238.67,31.96]
[1758338436583,1.98039296,238.69,238.67,31.96]
[1758338437803,2.68858806,238.69,238.67,31.96]
[1758338439084,0.14216157,238.68,238.67,31.96]
[1758338440506,0.14216157,238.68,238.67,62.59999998]
[1758338440708,2.83074963,238.68,238.67,94.41789998]
[1758338440998,2.11074963,238.68,238.67,94.41789998]
[1758338444186,0.14216157,238.68,238.67,31.96]
[1758338444393,0.2,238.72,238.67,50.42547962]
[1758338444609,1.96858806,238.71,238.68,0.68]
[1758338444793,0.14216157,238.7,238.69,31.98]
[1758338445195,0.14216157,238.7,238.69,32.66]
[1758338447795,2.31074963,238.72,238.69,36.84953373]
[1758338448310,2.31074963,238.72,238.69,36.16953373]
[1758338448510,2.31074963,238.72,238.7,0.68]
[1758338448810,2.31074963,238.72,238.71,32.0]
[1758338449713,3.03074963,238.72,238.71,32.0]
[1758338454915,2.31074963,238.72,238.71,32.0]
[1758338457022,6.49984743,238.72,238.71,31.98]
[1758338460914,7.18984743,238.72,238.71,31.96]
[1758338462315,6.49984743,238.72,238.71,31.96]
[1758338462522,2.31074963,238.72,238.71,31.96]
[1758338465105,0.34216157,238.72,238.71,32.64]
[1758338465431,0.34216157,238.72,238.67,31.96]
[1758338465432,0.14216157,238.68,238.67,31.96]
[1758338465624,2.11074963,238.68,238.67,31.96]
[1758338465928,2.11074963,238.68,238.67,32.64]
[1758338468309,2.11074963,238.68,238.67,31.96]
[1758338468810,2.11074963,238.68,238.65,0.68]
[1758338469012,2.11074963,238.68,238.66,32.66]
[1758338469835,2.11074963,238.67,238.66,32.66]
[1758338470216,2.11074963,238.67,238.66,31.98]
[1758338470723,2.11074963,238.67,238.66,32.66]
[1758338471734,2.11074963,238.67,238.63,13.87991715]
[1758338471735,0.14216157,238.66,238.63,63.0]
[1758338472039,2.11074963,238.64,238.63,63.68]
[1758338472341,2.11074963,238.64,238.63,95.66]
[1758338473328,0.14216157,238.64,238.63,95.66]
[1758338475244,0.14216157,238.64,238.63,113.44618194]
[1758338485048,0.14216157,238.64,238.63,113.73050508]
[1758338485223,0.14216157,238.64,238.63,115.69909314]
[1758338485424,0.14216157,238.64,238.63,113.73050508]
[1758338485753,0.14216157,238.64,238.63,115.69909314]
[1758338490551,0.14216157,238.64,238.63,113.73050508]
[1758338493348,0.14216157,238.64,238.63,115.69909314]
[1758338496653,0.14216157,238.64,238.63,113.73050508]
[1758338496953,0.14216157,238.64,238.63,115.69909314]
[1758338497758,0.14216157,238.64,238.63,114.99030951]
[1758338500653,1.94980443,238.71,238.65,0.28432314]
[1758338500856,1.94980443,238.71,238.67,0.28432314]
[1758338501053,1.94980443,238.71,238.69,13.59559401]
[1758338501250,1.25980443,238.71,238.7,31.96]
[1758338501462,1.25980443,238.71,238.7,94.96]
[1758338501863,1.94980443,238.71,238.7,99.14935902]
[1758338502551,2.091966,238.71,238.7,99.14935902]
[1758338507563,0.83216157,238.71,238.7,99.14935902]
[1758338507741,2.091966,238.71,238.7,99.14935902]
[1758338510167,0.83216157,238.71,238.7,99.14935902]
[1758338510367,2.091966,238.71,238.7,99.14935902]
[1758338510557,0.14216157,238.71,238.7,99.14935902]
[1758338511760,0.14216157,238.71,238.7,112.74495303]
[1758338514275,0.14216157,238.71,238.7,113.42495303]
[1758338514478,0.14216157,238.71,238.7,112.74495303]
[1758338516451,0.14216157,238.71,238.7,113.42495303]
[1758338518968,0.14216157,238.71,238.7,113.70927617]
[1758338519475,0.14216157,238.71,238.7,114.9690806]
[1758338521256,0.14216157,238.71,238.7,113.70927617]
[1758338522473,0.14216157,238.71,238.7,114.9690806]
[1758338525483,0.14216157,238.71,238.7,127.27940702]
[1758338525779,0.14216157,238.71,238.7,126.01960259]
[1758338529876,0.14216157,238.71,238.7,95.31940702]
[1758338530188,0.14216157,238.71,238.7,127.25940702]
[1758338532893,0.14216157,238.71,238.7,81.06927617]
[1758338532894,0.79216157,238.71,238.7,81.06927617]
[1758338533086,0.79216157,238.71,238.7,112.72495303]
[1758338533389,0.79216157,238.71,238.7,114.40410842]
[1758338533575,0.14216157,238.71,238.7,114.68843156]
[1758338535895,0.14216157,238.71,238.7,115.34843156]
[1758338536582,0.14216157,238.71,238.7,114.68843156]
[1758338538500,0.14216157,238.71,238.7,113.00927617]
[1758338538701,0.14216157,238.71,238.7,81.06927617]
[1758338539007,0.14216157,238.71,238.7,113.00927617]
[1758338540898,1.401966,238.71,238.7,81.06927617]
[1758338541105,1.401966,238.71,238.7,113.00927617]
[1758338541405,0.14216157,238.71,238.7,113.00927617]
[1758338545322,0.79216157,238.71,238.7,113.00927617]
[1758338545822,0.14216157,238.71,238.7,113.00927617]
[1758338546025,0.14216157,238.71,238.7,81.06927617]
[1758338546201,0.14216157,238.71,238.7,113.00927617]
[1758338546601,0.85216157,238.71,238.7,113.00927617]
[1758338546913,0.85216157,238.71,238.7,81.06927617]
[1758338547207,0.85216157,238.71,238.7,113.00927617]
[1758338547423,0.14216157,238.71,238.7,113.00927617]
[1758338549417,0.85216157,238.71,238.7,113.00927617]
[1758338549722,0.14216157,238.7,238.68,1.67915539]
[1758338549900,0.85216157,238.7,238.69,31.94]
[1758338550097,1.401966,238.7,238.69,31.94]
[1758338550611,1.82159896,238.7,238.69,32.66]
[1758338551511,1.82159896,238.7,238.69,50.44512855]
[1758338551705,0.14216157,238.71,238.7,13.59559401]
[1758338551906,1.96376053,238.71,238.7,13.59559401]
[1758338552107,1.96376053,238.71,238.7,13.87991715]
[1758338552341,0.14216157,238.71,238.7,14.59991715]
[1758338552524,0.2,238.72,238.71,0.28432314]
[1758338552829,0.2,238.72,238.71,32.94432314]
[1758338553626,0.2,238.72,238.71,37.13350666]
[1758338554519,0.2,238.72,238.71,50.72910067]
[1758338557316,0.2,238.72,238.71,113.72910067]
[1758338569021,0.2,238.72,238.71,81.06910067]
[1758338569231,1.05216157,238.72,238.71,113.00910067]
[1758338569545,0.34216157,238.72,238.71,113.00910067]
[1758338579432,0.34216157,238.72,238.71,113.72910067]
[1758338580431,0.34216157,238.72,238.71,113.00910067]
[1758338583154,0.34216157,238.72,238.71,81.06910067]
[1758338583357,1.00216157,238.72,238.71,112.72477753]
[1758338583556,1.00216157,238.72,238.71,108.53559401]
[1758338585744,1.00216157,238.72,238.71,112.72477753]
[1758338587663,0.34216157,238.72,238.71,112.72477753]
[1758338592646,0.34216157,238.72,238.71,76.59559401]
[1758338592855,0.34216157,238.72,238.71,112.72477753]
[1758338605248,0.34216157,238.72,238.71,80.78477753]
[1758338605454,0.34216157,238.72,238.71,112.72477753]
[1758338616769,0.34216157,238.72,238.71,108.53559401]
[1758338618148,0.34216157,238.72,238.71,113.38477753]
[1758338619375,0.34216157,238.72,238.71,112.72477753]
[1758338620483,2.30939192,238.72,238.71,94.94]
[1758338620790,0.34216157,238.72,238.71,94.94]
[1758338621366,0.34216157,238.72,238.71,31.94]
[1758338624282,0.34216157,238.72,238.69,63.66]
[1758338624495,0.14216157,238.69,238.67,13.59559401]
[1758338624791,0.80216157,238.69,238.68,31.92]
[1758338624960,0.14216157,238.69,238.68,31.92]
[1758338625799,0.14216157,238.69,238.68,32.58]
[1758338626162,2.06158038,238.69,238.68,31.92]
[1758338632380,1.40158038,238.69,238.68,31.92]
[1758338635501,0.14216157,238.69,238.68,31.92]
[1758338635673,1.40158038,238.69,238.68,31.92]
[1758338636090,0.14216157,238.69,238.68,31.92]
[1758338636303,1.40158038,238.69,238.68,31.92]
[1758338637473,2.09158038,238.69,238.68,31.92]
[1758338640793,1.40158038,238.69,238.68,31.92]
[1758338641004,0.14216157,238.71,238.68,32.62]
[1758338641295,0.14216157,238.7,238.69,0.7]
[1758338641597,0.14216157,238.7,238.69,32.62]
[1758338641797,0.14216157,238.7,238.69,31.92]
[1758338642394,1.40158038,238.7,238.69,31.92]
[1758338642593,2.07158038,238.7,238.69,31.92]
[1758338643493,6.2609394,238.7,238.69,31.92]
[1758338643699,0.14216157,238.66,238.63,63.0]
[1758338643887,31.2,238.67,238.6,13.59559401]
[1758338643888,0.14216157,238.63,238.6,13.59559401]
[1758338644090,1.40158038,238.63,238.61,31.92]
[1758338644286,1.40158038,238.62,238.61,31.92]
[1758338646896,32.60158038,238.62,238.61,31.92]
[1758338647914,2.07158038,238.62,238.61,31.7779]
[1758338648112,6.26234393,238.62,238.61,31.7779]
[1758338648292,31.2,238.59,238.54,13.59559401]
[1758338648480,31.34216157,238.61,238.58,0.7]
[1758338648681,31.34216157,238.6,238.59,31.94]
[1758338648881,31.34216157,238.6,238.59,32.64]
[1758338649905,61.34216157,238.6,238.59,31.94]
[1758338651494,61.34216157,238.6,238.59,32.64]
[1758338654996,61.34216157,238.6,238.59,31.94]
[1758338655603,62.60158038,238.6,238.59,31.94]
[1758338657917,63.27158038,238.6,238.59,31.94]
[1758338659612,62.60158038,238.6,238.59,31.94]
[1758338659907,61.34216157,238.6,238.59,31.94]
[1758338670823,0.14216157,238.6,238.59,31.94]
[1758338671627,1.40158038,238.6,238.59,31.94]
[1758338672229,32.60158038,238.6,238.59,31.94]
[1758338672432,62.60158038,238.6,238.59,31.94]
[1758338679842,0.14216157,238.59,238.57,0.69]
[1758338680027,31.34216157,238.57,238.56,31.94]
[1758338680329,31.34216157,238.57,238.56,32.63]
[1758338686452,32.00216157,238.57,238.56,31.94]
[1758338687154,31.34216157,238.57,238.56,31.94]
[1758338688134,61.34216157,238.57,238.56,31.94]
[1758338688855,31.34216157,238.57,238.56,31.94]
[1758338689957,31.34216157,238.57,238.56,32.63]
[1758338690131,33.31239507,238.57,238.56,32.63]
[1758338690837,31.34216157,238.57,238.56,32.63]
[1758338691853,61.34216157,238.57,238.56,32.63]
[1758338692667,63.31239507,238.57,238.56,31.94]
[1758338692840,63.97239507,238.57,238.56,31.94]
[1758338693746,68.16403693,238.57,238.56,31.94]
[1758338695054,0.14216157,238.56,238.52,63.0]
[1758338695361,32.11239507,238.56,238.54,31.94]
[1758338695558,32.77239507,238.56,238.54,31.94]
[1758338695854,32.11239507,238.56,238.54,31.94]
[1758338696239,30.14216157,238.56,238.54,31.94]
[1758338696845,30.14216157,238.56,238.54,32.62]
[1758338702358,32.11239507,238.56,238.54,32.62]
[1758338703860,30.14216157,238.56,238.54,32.62]
[1758338704163,30.14216157,238.56,238.54,31.94]
[1758338704482,30.14216157,238.56,238.54,32.62]
[1758338705779,30.14216157,238.56,238.54,31.94]
[1758338706249,30.14216157,238.56,238.54,32.62]
[1758338707272,30.14216157,238.56,238.54,31.94]
[1758338707981,32.83239507,238.56,238.54,31.94]
[1758338708172,32.11239507,238.56,238.54,31.94]
[1758338708360,32.83239507,238.56,238.54,31.94]
[1758338708673,32.11239507,238.56,238.54,31.94]
[1758338708875,2.11239507,238.56,238.54,31.94]
[1758338709044,0.14216157,238.56,238.54,31.94]
[1758338709241,31.34216157,238.55,238.54,31.94]
[1758338709446,34.03239507,238.55,238.54,31.94]
[1758338710271,33.31239507,238.55,238.54,31.94]
[1758338710573,31.34216157,238.55,238.54,31.94]
[1758338711349,33.31239507,238.55,238.54,31.94]
[1758338711858,63.31239507,238.55,238.54,31.94]
[1758338712365,61.34216157,238.55,238.54,31.94]
[1758338714173,73.9474684,238.55,238.54,31.94]
[1758338717388,43.9474684,238.55,238.54,31.94]
[1758338718388,12.60530683,238.55,238.54,52.37799653]
[1758338718587,1.9702335,238.63,238.55,13.59559401]
[1758338718874,43.80212976,238.61,238.56,34.5902335]
[1758338719052,0.14216157,238.6,238.57,0.68]
[1758338719256,31.2,238.59,238.58,31.94]
[1758338719473,31.2,238.59,238.58,32.62]
[1758338719775,31.34216157,238.59,238.58,32.62]
[1758338719986,0.14216157,238.59,238.58,36.81146617]
[1758338720484,30.14216157,238.59,238.58,36.81146617]
[1758338720680,0.14216157,238.59,238.58,36.81146617]
[1758338722165,31.34216157,238.59,238.58,36.81146617]
[1758338722370,31.34216157,238.59,238.58,32.62]
[1758338722879,0.14216157,238.59,238.58,32.62]
[1758338737134,0.14216157,238.59,238.58,50.40706018]
[1758338737277,0.69,238.67,238.59,13.59559401]
[1758338737476,12.6000126,238.66,238.6,34.5802335]
[1758338737697,30.14216157,238.61,238.6,47.50582751]
[1758338738210,0.14216157,238.61,238.6,52.36694234]
[1758338743201,0.14216157,238.61,238.6,115.36694234]
[1758338743882,0.14216157,238.61,238.6,114.65696378]
[1758338745802,0.14216157,238.61,238.6,114.94128692]
[1758338747701,0.14216157,238.61,238.6,80.78670884]
[1758338748005,0.14216157,238.61,238.6,108.51559401]
[1758338749404,0.83216157,238.61,238.6,94.92]
[1758338749584,14.69401692,238.61,238.6,94.92]
[1758338749778,4.33330036,238.6,238.55,14.26559401]
[1758338749983,0.14216157,238.58,238.56,31.92]
[1758338750192,0.83216157,238.58,238.56,31.92]
[1758338750592,0.14216157,238.58,238.56,31.92]
[1758338751502,0.83216157,238.58,238.56,31.92]
[1758338751692,0.14216157,238.58,238.56,31.92]
[1758338754705,0.14216157,238.58,238.56,32.59]
[1758338755506,0.14216157,238.58,238.56,36.78179111]
[1758338756798,0.14216157,238.6,238.57,0.69]
[1758338756995,0.14216157,238.6,238.58,31.92]
[1758338757200,30.14216157,238.59,238.58,32.61]
[1758338757600,30.0,238.59,238.58,46.20559401]
[1758338757815,0.84216157,238.63,238.58,46.20559401]
[1758338758101,12.60107109,238.61,238.59,0.69]
[1758338758303,30.0,238.6,238.58,13.59559401]
[1758338758504,30.0,238.6,238.59,31.92]
[1758338758716,30.14216157,238.6,238.59,31.92]
[1758338759514,0.14216157,238.6,238.59,31.92]
[1758338760409,0.14216157,238.6,238.59,32.61]
[1758338762609,0.14216157,238.6,238.59,51.65713944]
[1758338763001,0.14216157,238.6,238.59,50.3968845]
[1758338763195,0.14216157,238.6,238.59,45.51559401]
[1758338764417,0.14216157,238.6,238.59,46.18559401]
[1758338765527,0.14216157,238.6,238.59,50.3768845]
[1758338766924,0.14216157,238.6,238.59,113.3768845]
[1758338768809,0.14216157,238.6,238.59,109.18559401]
[1758338775006,0.14216157,238.6,238.59,108.51559401]
[1758338775207,0.14216157,238.6,238.59,113.3768845]
[1758338789545,0.14216157,238.6,238.59,113.66120764]
[1758338790038,0.71,238.67,238.6,13.87991715]
[1758338790214,2.82756848,238.66,238.63,13.59559401]
[1758338790421,2.82756848,238.65,238.64,31.92]
[1758338790731,30.14216157,238.65,238.64,31.92]
[1758338791338,33.67996815,238.65,238.64,31.92]
[1758338793327,32.96996815,238.65,238.64,31.92]
[1758338799548,32.96996815,238.65,238.63,76.59559401]
[1758338799736,0.14216157,238.64,238.63,76.59559401]
[1758338799936,0.14216157,238.64,238.63,108.51559401]
[1758338804354,0.14216157,238.64,238.63,63.0]
[1758338804654,0.14216157,238.64,238.63,94.92]
[1758338804655,33.6805252,238.64,238.63,94.92]
[1758338804832,33.68066061,238.64,238.63,94.92]
[1758338805548,37.87107294,238.64,238.63,31.92]
[1758338807170,39.84072269,238.64,238.63,31.92]
[1758338808555,39.13072269,238.64,238.63,31.92]
[1758338809564,37.16107294,238.64,238.63,31.92]
[1758338810069,37.87107294,238.64,238.63,31.92]
[1758338810850,37.16107294,238.64,238.63,31.92]
[1758338815177,37.87107294,238.64,238.63,31.92]
[1758338815470,37.16107294,238.64,238.63,31.92]
[1758338816249,32.97066061,238.64,238.63,31.92]
[1758338816568,32.97066061,238.64,238.63,32.62]
[1758338822187,31.34216157,238.64,238.63,32.62]
[1758338823888,31.34216157,238.64,238.63,31.92]
[1758338824187,0.14216157,238.63,238.62,77.25559401]
[1758338824390,0.14216157,238.63,238.62,109.17559401]
[1758338825465,0.80216157,238.63,238.62,63.0]
[1758338825669,3.63030087,238.63,238.62,94.92]
[1758338825987,36.79995062,238.63,238.62,94.92]
[1758338826286,40.99053855,238.63,238.62,63.0]
[1758338826476,40.99053855,238.63,238.62,94.92]
[1758338826984,53.59169887,238.63,238.62,94.92]
[1758338827181,70.99062778,238.63,238.62,94.92]
[1758338827390,69.02097803,238.63,238.62,94.92]
[1758338829191,69.02097803,238.63,238.62,31.92]
[1758338831681,81.62204912,238.63,238.62,31.92]
[1758338832086,81.62204912,238.63,238.58,76.59559401]
[1758338832288,0.14216157,238.61,238.59,31.92]